fUSD/lending_fUSD_20241225
["ID","MTS","AMOUNT","RATE_DAILY","PERIOD"]
[346570996,1735099847829,-500.0,0.0001291,2]
[346570998,1735099847838,-500.0,0.0001291,2]
[346571000,1735099847847,-500.0,0.0001291,2]
[346571002,1735099847857,-500.0,0.0001291,2]
[346571004,1735099847866,-848.61,0.0001291,2]
[346571006,1735099847875,-500.0,0.0001291,2]
[346571007,1735099847885,-3039.54,0.0001291,2]
[346571009,1735099847894,-658.43,0.0001291,2]
[346571011,1735099847904,-500.0,0.0001291,2]
[346571013,1735099847913,-1502.08,0.0001291,2]
[346571015,1735099847922,-500.0,0.0001291,2]
[346571017,1735099847931,-506.39,0.0001291,2]
[346571019,1735099847942,-720.95,0.0001291,2]
[346571021,1735099847951,-2549.4,0.0001291,2]
[346571023,1735099847960,-500.0,0.0001291,2]
[346571025,1735099847970,-1091.38,0.0001291,2]
[346571027,1735099847979,-31908.9,0.0001291,2]
[346571029,1735099847988,-858.32,0.0001291,2]
[346571031,1735099847997,-3171.75,0.0001291,2]
[346571033,1735099848007,-428.53623232,0.0001291,2]
[346571035,1735099848016,-626.34,0.0001291,2]
[346571037,1735099848025,-973.07090402,0.0001291,2]
[346571040,1735099848039,-629.92909598,0.0001291,2]
[346571042,1735099848048,-667.82,0.0001291,2]
[346571044,1735099848057,-1930.32,0.0001291,2]
[346571046,1735099848067,-725.41,0.0001291,2]
[346571048,1735099848076,-500.0,0.0001291,2]
[346571050,1735099848085,-500.0,0.0001291,2]
[346571052,1735099848094,-712.56950408,0.0001291,2]
[346572418,1735100729708,8151.99142521,9e-05,2]
[346572488,1735101003111,150.0,9e-05,2]
[346572489,1735101003317,150.0,9e-05,2]
[346572490,1735101003506,224.34340562,9e-05,2]
[346572501,1735101031600,-474.0,9.807e-05,2]
[346572503,1735101031659,-115.72,9.807e-05,2]
[346572504,1735101031669,-207.824,0.00010565,2]
[346572505,1735101031823,-430.24377552,0.00010565,2]
[346572537,1735101037637,-861.93222448,0.00010565,2]
[346572538,1735101037647,-250.0,0.00011651,2]
[346572539,1735101037661,-200.47,0.0001178,2]
[346572540,1735101037672,-202.1,0.00011781,2]
[346572541,1735101037682,-200.48,0.00011781,2]
[346572542,1735101037693,-202.59,0.00011781,2]
[346572543,1735101037702,-202.35,0.00011781,2]
[346572544,1735101037711,-203.36,0.00011781,2]
[346572545,1735101037720,-203.54,0.00011781,2]
[346572546,1735101037730,-203.87,0.00011781,2]
[346572547,1735101037739,-203.12,0.00011781,2]
[346572548,1735101037747,-1142.11724043,0.00011781,7]
[346572549,1735101037756,-1000.0,0.00011929,2]
[346572550,1735101037765,-9999.99,0.00011929,2]
[346572551,1735101037774,-999.99,0.00011929,2]
[346572552,1735101037784,-904.38653509,0.00011929,2]
[346572649,1735101039911,-313.94567625,0.00011929,2]
[346572650,1735101039923,-581.70778866,0.00011929,2]
[346572651,1735101039931,-203.25,0.00011929,2]
[346572652,1735101039940,-200.1,0.00011938,2]
[346572653,1735101039950,-201.72,0.00011938,2]
[346572654,1735101039960,-202.25,0.00011938,2]
[346572655,1735101039970,-202.54,0.00011938,2]
[346572656,1735101039980,-203.16,0.00011938,2]
[346572657,1735101039989,-589.72,0.00012071,2]
[346572658,1735101039998,-246.56816925,0.00012263,2]
[346572659,1735101040030,-1253.43183075,0.00012263,2]
[346572660,1735101040039,-312.161,0.000123,2]
[346572661,1735101040048,-687.03811769,0.00012324,2]
[346572662,1735101040060,-399.43,0.00012324,2]
[346572663,1735101040076,-413.53188231,0.00012324,2]
[346572664,1735101040085,-415.35443767,0.00012494,2]
[346572665,1735101040097,-1084.64556233,0.00012494,2]
[346572666,1735101040106,-25.35443267,0.00012566,2]
[346572667,1735101040117,-3295.01323348,0.00012566,2]
[346572668,1735101040128,-268.13583273,0.00012566,2]
[346572669,1735101040139,-319.30950112,0.00012566,2]
[346572670,1735101040149,-244.635,0.00012566,2]
[346572671,1735101040158,-617.48849889,0.00012566,2]
[346572672,1735101040179,-1393.51150111,0.00012566,2]
[346572673,1735101040189,-151.0,0.00012566,2]
[346572674,1735101040199,-1269.129,0.00012566,2]
[346572675,1735101040208,-202.61,0.00012652,2]
[346572676,1735101040217,-203.88,0.00012652,2]
[346572677,1735101040227,-203.47,0.00012652,2]
[346572678,1735101040236,-201.88,0.00012652,2]
[346572679,1735101040245,-202.35,0.00012652,2]
[346572680,1735101040254,-1096.03350465,0.00012652,2]
[346572681,1735101040263,-3000.0,0.0001278,2]
[346572682,1735101040272,-150.0,0.00012805,2]
[346572683,1735101040280,-227.4256332,0.00012806,2]
[346572684,1735101040290,-227.42563312,0.00012816,2]
[346572685,1735101040299,-227.42563312,0.00012827,2]
[346572686,1735101040308,-227.42563312,0.00012837,2]
[346572687,1735101040317,-227.42563312,0.00012848,2]
[346572688,1735101040326,-227.42563312,0.00012858,2]
[346572689,1735101040335,-227.42563312,0.00012869,2]
[346572690,1735101040345,-201.19,0.0001287,2]
[346572691,1735101040354,-227.42563312,0.00012879,2]
[346572692,1735101040363,-30351.91790198,0.0001288,2]
[346572693,1735101040384,-1745.2,0.0001288,2]
[346572694,1735101040395,-9096.64373114,0.0001288,2]
[346572695,1735101040407,-8947.21879473,0.0001288,2]
[346572696,1735101040419,-8943.78386462,0.0001288,2]
[346572697,1735101040430,-915.23570753,0.0001288,2]
[346572698,1735101040439,-227.42563312,0.0001289,2]
[346572699,1735101040447,-7934.88732087,0.00012898,2]
[346572700,1735101040458,-8943.84023489,0.00012898,2]
[346572714,1735101042661,-490.44589029,0.00012898,2]
[346572716,1735101042674,-595.18152239,0.00012898,2]
[346572718,1735101042685,-6815.47,0.00012898,2]
[346572719,1735101042762,-500.0,0.00012898,2]
[346572732,1735101045715,-1172.294,0.00012566,2]
[346572733,1735101045725,-2500.0,0.00012806,2]
[346572734,1735101045734,-59041.81633642,0.00012898,2]
[346572735,1735101045744,-227.42563312,0.000129,2]
[346572736,1735101045753,-2776.63,0.00012905,2]
[346572737,1735101045762,-955.26,0.00012905,2]
[346572738,1735101045772,-2710.01,0.00012905,2]
[346572739,1735101045781,-6780.95,0.00012905,2]
[346572740,1735101045791,-1904.25,0.00012905,2]
[346572741,1735101045800,-4231.16,0.00012905,2]
[346572742,1735101045809,-1403.71,0.00012905,2]
[346572743,1735101045819,-500.0,0.00012905,2]
[346572744,1735101045829,-22045.77,0.00012905,2]
[346572745,1735101045838,-6849.62,0.00012905,2]
[346572746,1735101045847,-4615.1,0.00012905,2]
[346572747,1735101045856,-3981.55,0.00012905,2]
[346572748,1735101045865,-11823.18,0.00012905,2]
[346572749,1735101045874,-4430.27,0.00012905,2]
[346572750,1735101045883,-3135.42,0.00012905,2]
[346572751,1735101045893,-4963.25,0.00012905,2]
[346572752,1735101045902,-8881.82,0.00012905,2]
[346572753,1735101045912,-2388.45,0.00012905,2]
[346572754,1735101045921,-570.77,0.00012905,2]
[346572755,1735101045930,-9306.89,0.00012905,2]
[346572756,1735101045939,-500.0,0.00012905,2]
[346572757,1735101045949,-1070.62,0.00012905,2]
[346572758,1735101045959,-2368.22,0.00012905,2]
[346572759,1735101045968,-675.47,0.00012905,2]
[346572760,1735101045978,-749.79,0.00012905,2]
[346572761,1735101045987,-500.0,0.00012905,2]
[346572762,1735101045995,-2544.01,0.00012905,2]
[346572763,1735101046005,-500.0,0.00012905,2]
[346572764,1735101046014,-1050.42,0.00012905,2]
[346572765,1735101046023,-500.0,0.00012905,2]
[346572766,1735101046032,-633.55,0.00012905,2]
[346572767,1735101046041,-4279.09,0.00012905,2]
[346572768,1735101046050,-803.11,0.00012905,2]
[346572769,1735101046060,-1775.13,0.00012905,2]
[346572770,1735101046070,-500.0,0.00012905,2]
[346572771,1735101046079,-670.65,0.00012905,2]
[346572772,1735101046088,-500.0,0.00012906,2]
[346572774,1735101046097,-416.90834441,0.00012906,2]
[346572776,1735101046106,-1788.82,0.00012906,2]
[346572777,1735101046115,-623.37,0.00012906,2]
[346572778,1735101046124,-500.0,0.00012906,2]
[346572779,1735101046133,-2926.22,0.00012906,2]
[346572780,1735101046142,-1651.16,0.00012906,2]
[346572781,1735101046152,-231.61110716,0.00012906,2]
[346572782,1735101046162,-585.01,0.00012906,2]
[346572783,1735101046171,-175.43415115,0.00012906,2]
[346572784,1735101046180,-1322.86,0.00012906,2]
[346572785,1735101046189,-422.91941976,0.00012906,2]
[346572786,1735101046198,-1058.86,0.00012906,2]
[346572787,1735101046207,-807.35,0.00012906,2]
[346572788,1735101046216,-500.0,0.00012906,2]
[346572789,1735101046224,-1068.58,0.00012906,2]
[346572790,1735101046233,-425.15027174,0.00012906,2]
[346572791,1735101046242,-509.79745696,0.00012906,2]
[346572792,1735101046252,-1639.41,0.00012906,2]
[346572793,1735101046261,-500.0,0.00012906,2]
[346572794,1735101046270,-851.12,0.00012906,2]
[346572795,1735101046279,-728.97,0.00012906,2]
[346572796,1735101046289,-505.84027236,0.00012906,2]
[346572797,1735101046298,-2336.05,0.00012906,2]
[346572798,1735101046307,-181.7232798,0.00012906,2]
[346572799,1735101046318,-2061.08,0.00012906,2]
[346572800,1735101046327,-607.76,0.00012906,2]
[346572801,1735101046336,-500.0,0.00012906,2]
[346572802,1735101046345,-500.0,0.00012906,2]
[346572803,1735101046354,-576.24,0.00012906,2]
[346572804,1735101046363,-500.0,0.00012906,2]
[346572805,1735101046372,-406.41590368,0.00012906,2]
[346572806,1735101046382,-597.85,0.00012906,2]
[346572807,1735101046391,-500.0,0.00012906,2]
[346572808,1735101046400,-378.40312056,0.00012906,2]
[346572809,1735101046410,-500.0,0.00012906,2]
[346572810,1735101046419,-536.77,0.00012906,2]
[346572811,1735101046428,-500.0,0.00012906,2]
[346572812,1735101046438,-2912.89,0.00012906,2]
[346572813,1735101046449,-500.0,0.00012906,2]
[346572814,1735101046459,-1515.35,0.00012906,2]
[346572815,1735101046469,-1439.5,0.00012906,2]
[346572816,1735101046478,-500.0,0.00012906,2]
[346572817,1735101046487,-500.0,0.00012906,2]
[346572818,1735101046496,-2443.18,0.00012906,2]
[346572819,1735101046505,-1045.9,0.00012906,2]
[346572820,1735101046514,-500.0,0.00012906,2]
[346572821,1735101046523,-3039.6,0.00012906,2]
[346572822,1735101046532,-401.53313432,0.00012906,2]
[346572823,1735101046541,-1536.21,0.00012906,2]
[346572824,1735101046550,-1849.89,0.00012906,2]
[346572825,1735101046559,-759.87,0.00012906,2]
[346572826,1735101046568,-2826.11,0.00012906,2]
[346572827,1735101046577,-500.0,0.00012906,2]
[346572828,1735101046587,-1523.43,0.00012906,2]
[346572829,1735101046596,-500.0,0.00012906,2]
[346572830,1735101046605,-1601.62,0.00012906,2]
[346572831,1735101046616,-192.81380429,0.00012906,2]
[346572832,1735101046626,-871.6,0.00012906,2]
[346572833,1735101046635,-500.0,0.00012906,2]
[346572834,1735101046644,-500.0,0.00012906,2]
[346572835,1735101046654,-4872.12,0.00012906,2]
[346572836,1735101046666,-2198.73,0.00012906,2]
[346572837,1735101046675,-17528.44,0.00012906,2]
[346572838,1735101046684,-500.0,0.00012906,2]
[346572839,1735101046694,-3274.1,0.00012906,2]
[346572840,1735101046703,-2059.31,0.00012906,2]
[346572841,1735101046712,-2205.74,0.00012906,2]
[346572842,1735101046722,-1527.06,0.00012906,2]
[346572843,1735101046730,-2504.623448,0.00012906,2]
[346572844,1735101046739,-155.201585,0.00012906,2]
[346572845,1735101046748,-156.473705,0.00012906,2]
[346572846,1735101046758,-7901.12,0.00012906,2]
[346572847,1735101046767,-2574.678431,0.00012906,2]
[346572848,1735101046775,-3283.42,0.00012906,2]
[346572849,1735101046785,-1153.22,0.00012906,2]
[346572850,1735101046794,-3734.41,0.00012906,2]
[346572851,1735101046802,-6880.63,0.00012906,2]
[346572852,1735101046811,-2052.34,0.00012906,2]
[346572853,1735101046820,-2584.28,0.00012906,2]
[346572854,1735101046829,-22869.11,0.00012906,2]
[346572855,1735101046838,-26136.26,0.00012906,2]
[346572856,1735101046847,-1892.95,0.00012906,2]
[346572857,1735101046855,-400.47990458,0.00012906,2]
[346572858,1735101046864,-2389.14,0.00012906,2]
[346572859,1735101046874,-500.0,0.00012906,2]
[346572860,1735101046883,-4228.5,0.00012906,2]
[346572861,1735101046892,-979.96,0.00012906,2]
[346572862,1735101046901,-2557.52,0.00012906,2]
[346572863,1735101046911,-3300.49,0.00012906,2]
[346572864,1735101046920,-625.00321127,0.00012906,2]
[346572865,1735101046933,-1901.67678873,0.00012906,2]
[346572866,1735101046942,-6783.22431232,0.00012906,2]
[346572867,1735101046953,-1931.64568768,0.00012906,2]
[346572868,1735101046962,-7194.18,0.00012906,2]
[346572869,1735101046971,-1837.69,0.00012906,2]
[346572870,1735101046980,-4518.07,0.00012906,2]
[346572871,1735101046989,-372.29,0.00012906,2]
[346572872,1735101046998,-500.0,0.00012906,2]
[346572873,1735101047007,-9521.0786678,0.00012906,2]
[346572874,1735101047017,-11140.19227494,0.00012906,2]
[346572875,1735101047040,-1442.81905726,0.00012906,2]
[346572876,1735101047049,-7213.36813976,0.00012906,2]
[346572877,1735101047082,-2351.63147196,0.00012906,2]
[346572879,1735101663518,609.92,9.439e-05,2]
[346572883,1735102019112,-182.78,0.00016658,30]
[346572897,1735102232002,-150.0,0.0001011,2]
[346572898,1735102232012,-200.18,0.00010136,2]
[346572899,1735102232022,-43.04,0.00010136,2]
[346572900,1735102232034,-160.23,0.00010136,2]
[346572901,1735102232043,-202.64,0.00010136,2]
[346572902,1735102232052,-203.25,0.00010136,2]
[346572903,1735102232062,-200.89,0.00010136,2]
[346572904,1735102232071,-200.24,0.00010136,2]
[346572905,1735102232081,-203.07,0.00010136,2]
[346572906,1735102232090,-201.72,0.00010136,2]
[346572907,1735102232100,-163.75576675,0.00010136,2]
[346572908,1735102232121,-38.75423325,0.00010136,2]
[346572909,1735102232131,-202.8,0.00010136,2]
[346572910,1735102232140,-203.19,0.00010136,2]
[346572911,1735102232151,-138.56030146,0.00010136,2]
[346572912,1735102232258,-64.09969854,0.00010136,2]
[346572913,1735102232267,-203.19,0.00010136,2]
[346572915,1735102232277,-202.21,0.00010136,2]
[346572916,1735102232286,-203.72,0.00010136,2]
[346572917,1735102232299,-201.91,0.00010137,2]
[346572918,1735102232308,-203.55,0.00010137,2]
[346572919,1735102232317,-200.37,0.00010137,2]
[346572920,1735102232327,-200.68,0.00010137,2]
[346572921,1735102232338,-203.97,0.00010137,2]
[346572922,1735102232347,-202.31,0.00010137,2]
[346572923,1735102232356,-201.91,0.00010137,2]
[346572924,1735102232367,-201.87,0.00010137,2]
[346572925,1735102232376,-101.31399656,0.00010137,2]
[346572926,1735102232387,-98.96600344,0.00010137,2]
[346572927,1735102232396,-203.39,0.00010137,2]
[346572928,1735102232407,-404.51,0.00010137,2]
[346572930,1735102232416,-203.54,0.00010564,2]
[346572932,1735102232426,-202.77,0.00010564,2]
[346572934,1735102232435,-200.12,0.00010564,2]
[346572936,1735102232444,-201.41,0.00010565,2]
[346572938,1735102232453,-202.35,0.00010565,2]
[346572940,1735102232462,-200.16,0.00010565,2]
[346572942,1735102232472,-196.06685971,0.00010565,2]
[346572944,1735102232493,-7.73314029,0.00010565,2]
[346572945,1735102232502,-203.88,0.00010565,2]
[346572946,1735102232511,-200.44,0.00010565,2]
[346572947,1735102232521,-201.51,0.00010565,2]
[346572948,1735102232531,-203.53,0.00010565,2]
[346572949,1735102232540,-201.09,0.00010565,2]
[346572950,1735102232549,-1500.0,0.00010864,2]
[346572951,1735102232560,-512.74324911,0.00011245,2]
[346572952,1735102237767,-544.38170658,0.00011245,2]
[346572953,1735102237779,-0.54504431,0.00011245,2]
[346572954,1735102237789,-249.03,0.00011284,2]
[346572955,1735102237798,-250.0,0.00011307,2]
[346572956,1735102237807,-609.92,0.00011703,2]
[346572957,1735102237817,-150.0,0.00011706,2]
[346572958,1735102237827,-150.0,0.0001171,2]
[346572959,1735102237836,-158.16,0.00011925,2]
[346572960,1735102237845,-1780.11,0.00011925,2]
[346572961,1735102237854,-158.16,0.00011929,2]
[346572962,1735102237863,-158.16,0.00011933,2]
[346572963,1735102237873,-158.16,0.00011937,2]
[346572964,1735102237882,-158.16,0.00011941,2]
[346572965,1735102237892,-158.16,0.00011945,2]
[346572966,1735102237902,-158.16,0.00011949,2]
[346572967,1735102237912,-158.16,0.00011953,2]
[346572968,1735102237921,-158.16,0.00011957,2]
[346572969,1735102237931,-158.16,0.00011961,2]
[346572970,1735102237940,-549.85,0.00011962,2]
[346572971,1735102237949,-158.16,0.00011965,2]
[346572972,1735102237959,-1000.0,0.00011966,2]
[346572973,1735102237968,-158.16,0.00011969,2]
[346572974,1735102237978,-158.16,0.00011973,2]
[346572975,1735102237987,-158.16,0.00011977,2]
[346572976,1735102237997,-158.16,0.00011981,2]
[346572977,1735102238007,-128.36217565,0.00011985,2]
[346572978,1735102238019,-29.79782435,0.00011985,2]
[346572979,1735102238028,-150.0,0.00012081,2]
[346572980,1735102238037,-280.06217565,0.0001223,2]
[346572981,1735102238049,-64.93782435,0.0001223,2]
[346572982,1735102238059,-299.206,0.0001226,2]
[346572983,1735102238070,-150.0,0.00012447,2]
[346572984,1735102238079,-345.0,0.0001259,2]
[346572985,1735102238089,-150.0,0.00012604,2]
[346572986,1735102238098,-1103.38107307,0.00012648,2]
[346572987,1735102238107,-1011.05848475,0.00012648,2]
[346572988,1735102238117,-150.0,0.00012662,2]
[346572989,1735102238126,-249.03,0.00012694,2]
[346572990,1735102238135,-150.0,0.00012762,2]
[346572991,1735102238144,-150.0,0.00012763,2]
[346572992,1735102238154,-32455.36696937,0.0001288,2]
[346572993,1735102238163,-150.0,0.00012883,2]
[346572994,1735102238173,-12263.87868405,0.000129,2]
[346572995,1735102238201,-520.07824653,0.000129,2]
[346572996,1735102238240,-2069.244388,0.000129,2]
[346572997,1735102238263,-852.99136144,0.000129,2]
[346572998,1735102238274,-1497.50978508,0.000129,2]
[346572999,1735102239860,-3578.50931283,0.000129,2]
[346573000,1735102240022,-7213.16893324,0.000129,2]
[346573001,1735102240033,-3327.17728142,0.000129,2]
[346573002,1735102240078,-1433.2,0.000129,2]
[346573003,1735102240144,-1219.61553686,0.000129,2]
[346573004,1735102240245,-405.47260068,0.000129,2]
[346573005,1735102240254,-366.0,0.000129,2]
[346573006,1735102240264,-1245.02739932,0.00012902,2]
[346573007,1735102243003,-317.92,0.00012902,2]
[346573008,1735102243015,-975.93,0.00012902,2]
[346573009,1735102243055,-122.06260068,0.00012902,2]
[346573010,1735102243064,-541.06,0.00012902,2]
[346573011,1735102243074,-915.46,0.00012902,2]
[346573012,1735102243083,-510.61739932,0.00012902,2]
[346573013,1735102243094,-1314.29260068,0.00012902,2]
[346573014,1735102243103,-2707.67,0.00012902,2]
[346573015,1735102243112,-4054.86,0.00012902,2]
[346573016,1735102243121,-1345.23,0.00012902,2]
[346573017,1735102243131,-6564.22,0.00012902,2]
[346573018,1735102243140,-17846.57613708,0.00012902,2]
[346573019,1735102243151,-3280.61386292,0.00012902,2]
[346573020,1735102243162,-3815.65,0.00012902,2]
[346573021,1735102243171,-4422.8,0.00012902,2]
[346573022,1735102243181,-4245.68,0.00012902,2]
[346573023,1735102243191,-11330.55,0.00012902,2]
[346573024,1735102243201,-6486.53,0.00012902,2]
[346573025,1735102243210,-3004.78,0.00012902,2]
[346573026,1735102243219,-4756.44,0.00012902,2]
[346573027,1735102243228,-6599.0311845,0.00012902,2]
[346573028,1735102243346,-900.10574579,0.00012902,2]
[346573030,1735102245999,-1012.60306971,0.00012902,2]
[346573031,1735102246009,-1212.20167219,0.00012902,2]
[346573032,1735102246020,-1669.15832781,0.00012902,2]
[346573033,1735102246030,-717.2406114,0.00012902,2]
[346573034,1735102246092,-1762.4393886,0.00012902,2]
[346573035,1735102246101,-1009.82433571,0.00012902,2]
[346573036,1735102246112,-330.49842,0.00012902,2]
[346573078,1735102752534,759.49516562,0.00019,120]
[346573097,1735103432002,-342.25197293,9.989e-05,2]
[346573098,1735103432015,-248.32802707,9.989e-05,2]
[346573099,1735103432024,-315.37152272,0.00010036,2]
[346573100,1735103432033,-200.2,0.00010136,2]
[346573101,1735103432043,-201.17,0.00010136,2]
[346573102,1735103432052,-59.92334727,0.00010136,2]
[346573103,1735103432153,-140.80665273,0.00010136,2]
[346573104,1735103432163,-201.28,0.00010136,2]
[346573105,1735103432173,-202.55,0.00010136,2]
[346573106,1735103432183,-200.33,0.00010136,2]
[346573107,1735103432193,-201.52,0.00010136,2]
[346573108,1735103432203,-200.05,0.00010136,2]
[346573109,1735103432212,-201.55,0.00010136,2]
[346573110,1735103432222,-203.73,0.00010136,2]
[346573111,1735103432233,-202.19,0.00010136,2]
[346573112,1735103432242,-203.38,0.00010136,2]
[346573113,1735103432252,-202.24,0.00010137,2]
[346573114,1735103432262,-202.61,0.00010137,2]
[346573115,1735103432271,-202.99,0.00010137,2]
[346573116,1735103432281,-203.12,0.00010137,2]
[346573117,1735103432291,-203.41,0.00010137,2]
[346573118,1735103432300,-203.58,0.00010137,2]
[346573119,1735103432309,-201.62,0.00010137,2]
[346573120,1735103432319,-200.37,0.00010137,2]
[346573121,1735103432328,-201.4,0.00010137,2]
[346573122,1735103432338,-258.02,0.00010137,2]
[346573123,1735103432347,-827.28704767,0.00010697,2]
[346573124,1735103432365,-229.71295233,0.00010697,2]
[346573125,1735103432375,-222.00705767,0.0001126,2]
[346573126,1735103432387,-618.27929359,0.0001126,2]
[346573127,1735103432418,-216.71364874,0.0001126,2]
[346573128,1735103432429,-250.0,0.00011636,2]
[346573129,1735103432438,-595.32,0.00011823,2]
[346573130,1735103432450,-226.96635126,0.00011852,2]
[346573131,1735103432462,-23.03364874,0.00011852,2]
[346573132,1735103432473,-625.59135376,0.00011853,2]
[346573133,1735103432485,-431.40864624,0.00011853,2]
[346573134,1735103432494,-574.95135376,0.00011943,2]
[346573295,1735103440080,-294.99,0.00011943,2]
[346573312,1735103443311,-130.05864624,0.00011943,2]
[346573313,1735103443321,-201.05,0.00011963,2]
[346573314,1735103443331,-590.58,0.00012253,2]
[346573315,1735103443341,-286.648,0.0001226,2]
[346573316,1735103443350,-1057.0,0.00012477,2]
[346573317,1735103443360,-1050.88933124,0.00012644,2]
[346573318,1735103443370,-183.77637893,0.00012644,2]
[346573321,1735103446230,-954.8853129,0.00012644,2]
[346573322,1735103446456,-760.75895883,0.00012898,2]
[346573323,1735103446465,-589.23572827,0.00012899,2]
[346573350,1735104635259,-480.29611562,9.9e-05,2]
[346573351,1735104635434,-51.22388438,9.9e-05,2]
[346573352,1735104635445,-384.28,0.00010137,2]
[346573353,1735104635454,-250.0,0.00011596,2]
[346573354,1735104635463,-186.77,0.00011694,2]
[346573355,1735104635472,-200.63,0.00011741,2]
[346573356,1735104635482,-202.98,0.00011906,2]
[346573357,1735104635491,-250.0,0.00011906,2]
[346573358,1735104635500,-202.71,0.00011918,2]
[346573359,1735104635509,-215.43260564,0.00011918,2]
[346573362,1735104638517,-2749.25739436,0.00011918,2]
[346573363,1735104638528,-201.73,0.00011946,2]
[346573364,1735104638538,-203.33,0.00011946,2]
[346573365,1735104638547,-201.81,0.00011946,2]
[346573366,1735104638556,-202.74,0.00011946,2]
[346573367,1735104638566,-200.26,0.00011949,2]
[346573368,1735104638576,-201.47,0.00011949,2]
[346573369,1735104638586,-203.33,0.00011949,2]
[346573370,1735104638599,-202.91,0.00011949,2]
[346573371,1735104638609,-200.32,0.00011949,2]
[346573372,1735104638619,-201.03,0.00011949,2]
[346573373,1735104638630,-202.45,0.00011949,2]
[346573374,1735104638640,-203.28,0.00011949,2]
[346573375,1735104638651,-203.41,0.00011949,2]
[346573376,1735104638661,-203.38,0.00011949,2]
[346573377,1735104638670,-1000.0,0.00011949,2]
[346573378,1735104638679,-202.88,0.00011955,2]
[346573379,1735104638689,-200.62,0.00011955,2]
[346573380,1735104638698,-531.52,0.00012164,2]
[346573381,1735104638708,-274.76,0.0001226,2]
[346573382,1735104638717,-1117.04169192,0.00012641,2]
[346573383,1735104638726,-263.08,0.00012717,2]
[346573384,1735104638736,-695.90561659,0.000128,2]
[346573386,1735104638747,-13311.16370464,0.000128,2]
[346573388,1735104638801,-7731.13180995,0.000128,2]
[346573389,1735104638810,-13198.42597253,0.00012888,2]
[346573393,1735104640297,-414.81767268,0.00012888,2]
[346573394,1735104640361,-289.15000193,0.00012888,2]
[346573395,1735104640423,-299.8200351,0.00012888,2]
[346573396,1735104640492,-1705.5582732,0.00012888,2]
[346573398,1735104643287,-2438.03041208,0.00012888,2]
[346573399,1735104643351,-965.02382423,0.00012888,2]
[346573438,1735104646259,-2621.03040899,0.00012888,2]
[346573439,1735104646269,-1732.78734519,0.00012888,2]
[346573440,1735104646381,-292.80640999,0.00012888,2]
[346573462,1735105832509,-516.24,9.973e-05,2]
[346573463,1735105832520,-245.11,0.00010137,2]
[346573464,1735105832529,-158.8,0.00011209,2]
[346573465,1735105832539,-250.0,0.00011243,2]
[346573466,1735105832547,-250.0,0.00011318,2]
[346573467,1735105832557,-261.99632965,0.00011445,2]
[346573468,1735105832566,-569.51,0.00011557,2]
[346573469,1735105832575,-1000.0,0.0001169,2]
[346573470,1735105832586,-550.0,0.0001188,2]
[346573471,1735105832595,-1500.0,0.00011955,2]
[346573472,1735105832605,-300.0,0.00011996,2]
[346573473,1735105832614,-347.95280829,0.00011997,2]
[346573474,1735105832623,-52916.08187628,0.00011997,2]
[346573475,1735105832632,-2465.66,0.00011997,2]
[346573476,1735105832642,-2550.0,0.00011997,2]
[346573477,1735105832651,-1748.87,0.00011997,2]
[346573478,1735105832661,-3885.91,0.00011997,2]
[346573479,1735105832670,-500.0,0.00011997,2]
[346573480,1735105832682,-4980.14,0.00011997,2]
[346573481,1735105832691,-3656.67,0.00011997,2]